Workbook

Sheet Order Form
A1: Wildland Equipment Order Form/Invoice | G1: MN-RFD-
D2: Version 2025.1
A3: Fire Department Name | E3: Date
A4: Shipping Address (No P.O. Boxes)
A5: City, State, Zip Code | E5: Date Needed
A6: Contact Name
A7: Phone # | E7: Signature: ___________________________________________________
A8: Email
A10: Enter the quantity of the item you would like below then click filter. | D10: Pickup | E10: Completed forms can be mailed or emailed to:
D11: Ship | E11: Northeast Interagency Support Cache 402 SE 11th Street Grand Rapids, MN 55744 218-322-2764
E12: sm.fs.nekfirecache@usda.gov
A13: Item # | B13: Qty | C13: Unit of Issue | D13: Description | E13: Unit of Issue Cost | F13: Total | H13: Weight | I13: Total weight
A14: 6 | B14: 0 | C14: EA | D14: ADAPTER - 1 1/2" NH-F, (9 TPI) TO 1 1/2" NPSH-M (11 1/2 TPI) | E14: =_xlfn.XLOOKUP(A14,'Price List'!A:A,'Price List'!B:B) -> 16.05 | F14: =E14*B14 -> 0 | H14: 0.25 | I14: =B14*H14 -> 0
A15: 7 | B15: 0 | C15: EA | D15: ADAPTER - 1 1/2" NPSH-F, (11 1/2 TPI) TO 1 1/2" NH-M (9TPI) | E15: =_xlfn.XLOOKUP(A15,'Price List'!A:A,'Price List'!B:B) -> 16.05 | F15: 0 | H15: 0.25 | I15: 0
A16: 4 | B16: 0 | C16: EA | D16: ADAPTER - 1" NH-F,(9 TPI) TO 1" NPSH-M (11 1/2 TPI) | E16: =_xlfn.XLOOKUP(A16,'Price List'!A:A,'Price List'!B:B) -> 5.01 | F16: 0 | H16: 0.13 | I16: 0
A17: 3 | B17: 0 | C17: EA | D17: ADAPTER - 1" NPSH-F,(11 1/2 TPI) TO 1" NH-M(8 TPI) | E17: =_xlfn.XLOOKUP(A17,'Price List'!A:A,'Price List'!B:B) -> 4.95 | F17: 0 | H17: 0.13 | I17: 0
A18: 46 | B18: 0 | C18: EA | D18: CLAMP - HOSE, SHUT-OFF, 1" - 1 1/2" HOSES | E18: =_xlfn.XLOOKUP(A18,'Price List'!A:A,'Price List'!B:B) -> 53.94 | F18: 0 | H18: 1.44 | I18: 0
A19: 857 | B19: 0 | C19: EA | D19: COUPLING - DOUBLE FEMALE 1 1/2" NH-F (9 TPI) | E19: =_xlfn.XLOOKUP(A19,'Price List'!A:A,'Price List'!B:B) -> 26.76 | F19: 0 | H19: 1.19 | I19: 0
A20: 710 | B20: 0 | C20: EA | D20: COUPLING - DOUBLE FEMALE, 1'' NPSH (11 1/2 TPI) | E20: =_xlfn.XLOOKUP(A20,'Price List'!A:A,'Price List'!B:B) -> 17.11 | F20: 0 | H20: 0.19 | I20: 0
A21: 856 | B21: 0 | C21: EA | D21: COUPLING - DOUBLE MALE 1 1/2" NH-M (9-TPI) | E21: =_xlfn.XLOOKUP(A21,'Price List'!A:A,'Price List'!B:B) -> 18.69 | F21: 0 | H21: 1 | I21: 0
A22: 916 | B22: 0 | C22: EA | D22: COUPLING - DOUBLE MALE, 1" NPSH TO 1" NPSH | E22: =_xlfn.XLOOKUP(A22,'Price List'!A:A,'Price List'!B:B) -> 15.22 | F22: 0 | H22: 0.31 | I22: 0
A23: 429 | B23: 0 | C23: EA | D23: FITTING - BACKPACK PUMP, FEMALE | E23: =_xlfn.XLOOKUP(A23,'Price List'!A:A,'Price List'!B:B) -> 9.65 | F23: 0 | H23: 0.31 | I23: 0
A24: 428 | B24: 0 | C24: EA | D24: FITTING - BACKPACK PUMP, MALE | E24: =_xlfn.XLOOKUP(A24,'Price List'!A:A,'Price List'!B:B) -> 7.13 | F24: 0 | H24: 0.13 | I24: 0
A25: 1145 | B25: 0 | C25: PL | D25: FOAM, CLASS A | E25: =_xlfn.XLOOKUP(A25,'Price List'!A:A,'Price List'!B:B) -> 128.33 | F25: 0 | H25: 43.63 | I25: 0
A26: 105 | B26: 0 | C26: BX | D26: FUSEE - SIGNAL DEVICE, HAND (72 PER BOX) (HAZMAT ITEM - ADDITIONAL SHIPPING COSTS WILL APPLY) | E26: =_xlfn.XLOOKUP(A26,'Price List'!A:A,'Price List'!B:B) -> 143.17 | F26: 0 | H26: 37.5 | I26: 0
A27: 743 | B27: 0 | C27: EA | D27: GASKET - HOSE, 1", RUBBER | E27: =_xlfn.XLOOKUP(A27,'Price List'!A:A,'Price List'!B:B) -> 0.48 | F27: 0 | H27: 0.06 | I27: 0
A28: 254 | B28: 0 | C28: EA | D28: GASKET - HOSE, 1.5" | E28: =_xlfn.XLOOKUP(A28,'Price List'!A:A,'Price List'!B:B) -> 0.37 | F28: 0 | H28: 0.06 | I28: 0
A29: 721 | B29: 0 | C29: EA | D29: GASKET, GARDEN HOSE 3/4" | E29: =_xlfn.XLOOKUP(A29,'Price List'!A:A,'Price List'!B:B) -> 0.24 | F29: 0 | H29: 0.06 | I29: 0
A30: 1296 | B30: 0 | C30: PR | D30: GLOVES - LARGE | E30: =_xlfn.XLOOKUP(A30,'Price List'!A:A,'Price List'!B:B) -> 21.68 | F30: 0 | H30: 0.44 | I30: 0
A31: 1295 | B31: 0 | C31: PR | D31: GLOVES - MEDIUM | E31: =_xlfn.XLOOKUP(A31,'Price List'!A:A,'Price List'!B:B) -> 21.68 | F31: 0 | H31: 0.38 | I31: 0
A32: 1294 | B32: 0 | C32: PR | D32: GLOVES - SMALL | E32: =_xlfn.XLOOKUP(A32,'Price List'!A:A,'Price List'!B:B) -> 21.68 | F32: 0 | H32: 0.31 | I32: 0
A33: 1297 | B33: 0 | C33: PR | D33: GLOVES - X-LARGE | E33: =_xlfn.XLOOKUP(A33,'Price List'!A:A,'Price List'!B:B) -> 21.68 | F33: 0 | H33: 0.5 | I33: 0
A34: 1293 | B34: 0 | C34: PR | D34: GLOVES - X-SMALL | E34: =_xlfn.XLOOKUP(A34,'Price List'!A:A,'Price List'!B:B) -> 21.68 | F34: 0 | H34: 0.31 | I34: 0
A35: 318 | B35: 0 | C35: PR | D35: GOGGLES, UVEX, CLEAR LENSE | E35: =_xlfn.XLOOKUP(A35,'Price List'!A:A,'Price List'!B:B) -> 22.02 | F35: 0 | H35: 0.25 | I35: 0
A36: 1086 | B36: 0 | C36: EA | D36: HARNESS - RADIO HOLDER CHEST | E36: =_xlfn.XLOOKUP(A36,'Price List'!A:A,'Price List'!B:B) -> 91.29 | F36: 0 | H36: 0.56 | I36: 0
A37: 718 | B37: 0 | C37: EA | D37: HEADLAMP - FIREFIGHTERS, LED | E37: =_xlfn.XLOOKUP(A37,'Price List'!A:A,'Price List'!B:B) -> 57.15 | F37: 0 | H37: 0.65 | I37: 0
A38: 7291 | B38: 0 | C38: EA | D38: HELMET - FULL BRIM, YELLOW, BULLARD, 911H | E38: =_xlfn.XLOOKUP(A38,'Price List'!A:A,'Price List'!B:B) -> 58.43 | F38: 0 | H38: 2 | I38: 0
A39: 7287 | B39: 0 | C39: EA | D39: HELMET,SAFETY,PLASTIC CAP STYLE | E39: =_xlfn.XLOOKUP(A39,'Price List'!A:A,'Price List'!B:B) -> 44.94 | F39: 0 | H39: 0 | I39: 0
A40: 1016 | B40: 0 | C40: LG | D40: HOSE – GARDEN, SYNTHETIC, 3/4" NH X 50 FT | E40: =_xlfn.XLOOKUP(A40,'Price List'!A:A,'Price List'!B:B) -> 32.9 | F40: 0 | H40: 1.25 | I40: 0
A41: 7629 | B41: 0 | C41: LG | D41: HOSE - HOTLINE 1" NPSH X 50' | E41: =_xlfn.XLOOKUP(A41,'Price List'!A:A,'Price List'!B:B) -> 82.02 | F41: 0 | H41: 5 | I41: 0
A42: 115 | B42: 0 | C42: LG | D42: HOSE - SUCTION, 1 1/2" NH X 10', RUBBER, RCKR LUG COUPL,9 NSHT/IN | E42: =_xlfn.XLOOKUP(A42,'Price List'!A:A,'Price List'!B:B) -> 213.7 | F42: 0 | H42: 8.88 | I42: 0
A43: 1239 | B43: 0 | C43: LG | D43: HOSE - SYNTHETIC, LINED, 1 1/2" NH X 100' | E43: =_xlfn.XLOOKUP(A43,'Price List'!A:A,'Price List'!B:B) -> 239.17 | F43: 0 | H43: 12.38 | I43: 0
A44: 1238 | B44: 0 | C44: LG | D44: HOSE - SYNTHETIC, LINED, 1" NPSH X 100' | E44: =_xlfn.XLOOKUP(A44,'Price List'!A:A,'Price List'!B:B) -> 189.13 | F44: 0 | H44: 8.38 | I44: 0
A45: 1808 | B45: 0 | C45: LG | D45: HOSE, SUCTION, RUBBER, 1.5" NH X 8' | E45: =_xlfn.XLOOKUP(A45,'Price List'!A:A,'Price List'!B:B) -> 181.02 | F45: 0 | H45: 7.88 | I45: 0
A46: 2800 | B46: 0 | C46: PR | D46: JEANS, BDU 26"-30" X 30" | E46: =_xlfn.XLOOKUP(A46,'Price List'!A:A,'Price List'!B:B) -> 116.08 | F46: 0 | H46: 1.25 | I46: 0
A47: 2841 | B47: 0 | C47: PR | D47: JEANS, BDU 26"-30" X 36" | E47: =_xlfn.XLOOKUP(A47,'Price List'!A:A,'Price List'!B:B) -> 116.08 | F47: 0 | H47: 1.25 | I47: 0
A48: 2700 | B48: 0 | C48: PR | D48: JEANS, BDU 26-30” X 34” | E48: =_xlfn.XLOOKUP(A48,'Price List'!A:A,'Price List'!B:B) -> 116.08 | F48: 0 | H48: 1.25 | I48: 0
A49: 2801 | B49: 0 | C49: PR | D49: JEANS, BDU 28"-32" X 30" | E49: =_xlfn.XLOOKUP(A49,'Price List'!A:A,'Price List'!B:B) -> 116.08 | F49: =E49*B49 -> 0 | H49: 1.25 | I49: =B49*H49 -> 0
A50: 2843 | B50: 0 | C50: PR | D50: JEANS, BDU 28"-32" X 36" | E50: =_xlfn.XLOOKUP(A50,'Price List'!A:A,'Price List'!B:B) -> 116.08 | F50: 0 | H50: 1.25 | I50: 0
A51: 2701 | B51: 0 | C51: PR | D51: JEANS, BDU 28-32” X 34” | E51: =_xlfn.XLOOKUP(A51,'Price List'!A:A,'Price List'!B:B) -> 116.08 | F51: 0 | H51: 1.31 | I51: 0
A52: 2844 | B52: 0 | C52: PR | D52: JEANS, BDU 30"-34" X 36" | E52: =_xlfn.XLOOKUP(A52,'Price List'!A:A,'Price List'!B:B) -> 116.08 | F52: 0 | H52: 1.25 | I52: 0
A53: 2802 | B53: 0 | C53: PR | D53: JEANS, BDU 30"-34" X30" | E53: =_xlfn.XLOOKUP(A53,'Price List'!A:A,'Price List'!B:B) -> 116.08 | F53: 0 | H53: 1.31 | I53: 0
A54: 2702 | B54: 0 | C54: PR | D54: JEANS, BDU 30-34” X 34” | E54: =_xlfn.XLOOKUP(A54,'Price List'!A:A,'Price List'!B:B) -> 116.08 | F54: 0 | H54: 1.25 | I54: 0
A55: 2803 | B55: 0 | C55: PR | D55: JEANS, BDU 32"-36" X 30" | E55: =_xlfn.XLOOKUP(A55,'Price List'!A:A,'Price List'!B:B) -> 116.08 | F55: 0 | H55: 1.38 | I55: 0
A56: 2845 | B56: 0 | C56: PR | D56: JEANS, BDU 32"-36" X 36" | E56: =_xlfn.XLOOKUP(A56,'Price List'!A:A,'Price List'!B:B) -> 116.08 | F56: 0 | H56: 1.25 | I56: 0
A57: 2703 | B57: 0 | C57: PR | D57: JEANS, BDU 32-36” X 34” | E57: =_xlfn.XLOOKUP(A57,'Price List'!A:A,'Price List'!B:B) -> 116.08 | F57: 0 | H57: 1.38 | I57: 0
A58: 2804 | B58: 0 | C58: PR | D58: JEANS, BDU 34"-38" X 30" | E58: =_xlfn.XLOOKUP(A58,'Price List'!A:A,'Price List'!B:B) -> 116.08 | F58: 0 | H58: 1.38 | I58: 0
A59: 2847 | B59: 0 | C59: PR | D59: JEANS, BDU 34"-38" X 36" | E59: =_xlfn.XLOOKUP(A59,'Price List'!A:A,'Price List'!B:B) -> 116.08 | F59: 0 | H59: 1.25 | I59: 0
A60: 2704 | B60: 0 | C60: PR | D60: JEANS, BDU 34-38” X 34” | E60: =_xlfn.XLOOKUP(A60,'Price List'!A:A,'Price List'!B:B) -> 116.08 | F60: 0 | H60: 1.38 | I60: 0
A61: 2805 | B61: 0 | C61: PR | D61: JEANS, BDU 36"-40" X 30" | E61: =_xlfn.XLOOKUP(A61,'Price List'!A:A,'Price List'!B:B) -> 116.08 | F61: 0 | H61: 1.38 | I61: 0
A62: 2848 | B62: 0 | C62: PR | D62: JEANS, BDU 36"-40" X 36" | E62: =_xlfn.XLOOKUP(A62,'Price List'!A:A,'Price List'!B:B) -> 116.08 | F62: 0 | H62: 1.25 | I62: 0
A63: 2705 | B63: 0 | C63: PR | D63: JEANS, BDU 36-40” X 34” | E63: =_xlfn.XLOOKUP(A63,'Price List'!A:A,'Price List'!B:B) -> 116.08 | F63: 0 | H63: 1.38 | I63: 0
A64: 2806 | B64: 0 | C64: PR | D64: JEANS, BDU 38"-42" X 30" | E64: =_xlfn.XLOOKUP(A64,'Price List'!A:A,'Price List'!B:B) -> 116.08 | F64: 0 | H64: 1.38 | I64: 0
A65: 2849 | B65: 0 | C65: PR | D65: JEANS, BDU 38"-42" X 36" | E65: =_xlfn.XLOOKUP(A65,'Price List'!A:A,'Price List'!B:B) -> 116.08 | F65: 0 | H65: 1.25 | I65: 0
A66: 2706 | B66: 0 | C66: PR | D66: JEANS, BDU 38-42” X 34” | E66: =_xlfn.XLOOKUP(A66,'Price List'!A:A,'Price List'!B:B) -> 116.08 | F66: 0 | H66: 1.38 | I66: 0
A67: 2807 | B67: 0 | C67: PR | D67: JEANS, BDU 40"-44" X 30" | E67: =_xlfn.XLOOKUP(A67,'Price List'!A:A,'Price List'!B:B) -> 116.08 | F67: 0 | H67: 1.44 | I67: 0
A68: 2850 | B68: 0 | C68: PR | D68: JEANS, BDU 40"-44" X 36" | E68: =_xlfn.XLOOKUP(A68,'Price List'!A:A,'Price List'!B:B) -> 116.08 | F68: 0 | H68: 1.25 | I68: 0
A69: 2707 | B69: 0 | C69: PR | D69: JEANS, BDU 40-44” X 34” | E69: =_xlfn.XLOOKUP(A69,'Price List'!A:A,'Price List'!B:B) -> 116.08 | F69: 0 | H69: 1.25 | I69: 0
A70: 2842 | B70: 0 | C70: PR | D70: JEANS, BDU 44"-48" X 30" | E70: =_xlfn.XLOOKUP(A70,'Price List'!A:A,'Price List'!B:B) -> 116.08 | F70: 0 | H70: 1.25 | I70: 0
A71: 2846 | B71: 0 | C71: PR | D71: JEANS, BDU 44"-48" X 33" | E71: =_xlfn.XLOOKUP(A71,'Price List'!A:A,'Price List'!B:B) -> 116.08 | F71: 0 | H71: 1.25 | I71: 0
A72: 2851 | B72: 0 | C72: PR | D72: JEANS, BDU 44"-48" X 36" | E72: =_xlfn.XLOOKUP(A72,'Price List'!A:A,'Price List'!B:B) -> 116.08 | F72: 0 | H72: 1.25 | I72: 0
A73: 597 | B73: 0 | C73: EA | D73: LINER - BACKPACK PUMP | E73: =_xlfn.XLOOKUP(A73,'Price List'!A:A,'Price List'!B:B) -> 9.66 | F73: 0 | H73: 0.88 | I73: 0
A74: 296 | B74: 0 | C74: EA | D74: MC LEOD W/SHEATH | E74: =_xlfn.XLOOKUP(A74,'Price List'!A:A,'Price List'!B:B) -> 68.49 | F74: 0 | H74: 6.19 | I74: 0
A75: 24 | B75: 0 | C75: EA | D75: NOZZLE - TWIN TIP, 1" NPSH-F | E75: =_xlfn.XLOOKUP(A75,'Price List'!A:A,'Price List'!B:B) -> 151.16 | F75: 0 | H75: 2.25 | I75: 0
A76: 628 | B76: 0 | C76: EA | D76: NOZZLE - FIRE FOAM, 1.5" NH, 16 GPM, PLASTIC | E76: =_xlfn.XLOOKUP(A76,'Price List'!A:A,'Price List'!B:B) -> 25.58 | F76: 0 | H76: 0.88 | I76: 0
A77: 629 | B77: 0 | C77: EA | D77: NOZZLE - FIRE FOAM, 1.5" NH, 30 GPM, PLASTIC | E77: =_xlfn.XLOOKUP(A77,'Price List'!A:A,'Price List'!B:B) -> 31 | F77: 0 | H77: 1.13 | I77: 0
A78: 627 | B78: 0 | C78: EA | D78: NOZZLE - FIRE FOAM, 3/4” NH, 8 GPM, PLASTIC | E78: =_xlfn.XLOOKUP(A78,'Price List'!A:A,'Price List'!B:B) -> 19.18 | F78: 0 | H78: 0.38 | I78: 0
A79: 136 | B79: 0 | C79: EA | D79: NOZZLE - GARDEN HOSE, 3/4" NH, ADJUSTABLE, BRASS | E79: =_xlfn.XLOOKUP(A79,'Price List'!A:A,'Price List'!B:B) -> 21.96 | F79: 0 | H79: 0.44 | I79: 0
A80: 138 | B80: 0 | C80: EA | D80: NOZZLE - PLASTIC, 35 GPM, 1'' NPSH-F | E80: =_xlfn.XLOOKUP(A80,'Price List'!A:A,'Price List'!B:B) -> 8.64 | F80: =E80*B80 -> 0 | H80: 0.5 | I80: =B80*H80 -> 0
A81: 137 | B81: 0 | C81: EA | D81: NOZZLE - PLASTIC, 60 GPM, 1 1/2'' NH-F X 4 3/4'' LONG | E81: =_xlfn.XLOOKUP(A81,'Price List'!A:A,'Price List'!B:B) -> 8.33 | F81: 0 | H81: 0.63 | I81: 0
A82: 674 | B82: 0 | C82: EA | D82: PACK, FIRELINE (BLUE), COMPLETE | E82: =_xlfn.XLOOKUP(A82,'Price List'!A:A,'Price List'!B:B) -> 153.14 | F82: 0 | H82: 3.69 | I82: 0
A83: 679 | B83: 0 | C83: EA | D83: PACK, PERSONAL GEAR, RED | E83: =_xlfn.XLOOKUP(A83,'Price List'!A:A,'Price List'!B:B) -> 116.62 | F83: 0 | H83: 4 | I83: 0
A84: 146 | B84: 0 | C84: EA | D84: PULASKI, WITH PLASTIC SHEATH | E84: =_xlfn.XLOOKUP(A84,'Price List'!A:A,'Price List'!B:B) -> 72.68 | F84: 0 | H84: 5.88 | I84: 0
A85: 1149 | B85: 0 | C85: EA | D85: PUMP – BACKPACK, OUTFIT COMPLETE | E85: =_xlfn.XLOOKUP(A85,'Price List'!A:A,'Price List'!B:B) -> 205.4 | F85: 0 | H85: 6.94 | I85: 0
A86: 151 | B86: 0 | C86: EA | D86: PUMP - TROMBONE | E86: =_xlfn.XLOOKUP(A86,'Price List'!A:A,'Price List'!B:B) -> 70.67 | F86: 0 | H86: 2.63 | I86: 0
A87: 659 | B87: 0 | C87: EA | D87: RAKE - COLLAPSIBLE | E87: =_xlfn.XLOOKUP(A87,'Price List'!A:A,'Price List'!B:B) -> 96.79 | F87: 0 | H87: 3.31 | I87: 0
A88: 1807 | B88: 0 | C88: EA | D88: RAKE, FIRE (COUNCIL TOOL) W/SHEATH | E88: =_xlfn.XLOOKUP(A88,'Price List'!A:A,'Price List'!B:B) -> 100.57 | F88: 0 | H88: 3.7 | I88: 0
A89: 10 | B89: 0 | C89: EA | D89: REDUCER - 1 1/2" NH-F (9 TPI) TO 1" NPSH-M (11 1/2 TPI) | E89: =_xlfn.XLOOKUP(A89,'Price List'!A:A,'Price List'!B:B) -> 13.52 | F89: 0 | H89: 0.19 | I89: 0
A90: 733 | B90: 0 | C90: EA | D90: REDUCER - 1'' NPSH-F (11 1/2 TPI) TO 3/4'' NH-M (11 1/2 TPI) | E90: =_xlfn.XLOOKUP(A90,'Price List'!A:A,'Price List'!B:B) -> 10.86 | F90: 0 | H90: 0.19 | I90: 0
A91: 2230 | B91: 0 | C91: EA | D91: REDUCER - 2 1/2'' NH-F, 1 1/2'' NH-M | E91: =_xlfn.XLOOKUP(A91,'Price List'!A:A,'Price List'!B:B) -> 26.87 | F91: 0 | H91: 0.88 | I91: 0
A92: 257 | B92: 0 | C92: EA | D92: SHEATH - PULASKI | E92: =_xlfn.XLOOKUP(A92,'Price List'!A:A,'Price List'!B:B) -> 4.19 | F92: 0 | H92: 0.31 | I92: 0
A93: 975 | B93: 0 | C93: EA | D93: SHELTER, FIRE, LARGE, M2002, COMPLETE | E93: =_xlfn.XLOOKUP(A93,'Price List'!A:A,'Price List'!B:B) -> 548.21 | F93: 0 | H93: 6.38 | I93: 0
A94: 925 | B94: 0 | C94: EA | D94: SHELTER, FIRE, M2002, COMPLETE, REGULAR | E94: =_xlfn.XLOOKUP(A94,'Price List'!A:A,'Price List'!B:B) -> 500.97 | F94: 0 | H94: 5.19 | I94: 0
A95: 579 | B95: 0 | C95: EA | D95: SHIRT – FIRE, LARGE | E95: =_xlfn.XLOOKUP(A95,'Price List'!A:A,'Price List'!B:B) -> 95.54 | F95: 0 | H95: 1 | I95: 0
A96: 578 | B96: 0 | C96: EA | D96: SHIRT – FIRE, MEDIUM | E96: =_xlfn.XLOOKUP(A96,'Price List'!A:A,'Price List'!B:B) -> 95.54 | F96: 0 | H96: 0.94 | I96: 0
A97: 569 | B97: 0 | C97: EA | D97: SHIRT – FIRE, MEDIUM, LOGN | E97: =_xlfn.XLOOKUP(A97,'Price List'!A:A,'Price List'!B:B) -> 95.54 | F97: 0 | H97: 0.94 | I97: 0
A98: 577 | B98: 0 | C98: EA | D98: SHIRT – FIRE, SMALL | E98: =_xlfn.XLOOKUP(A98,'Price List'!A:A,'Price List'!B:B) -> 95.54 | F98: 0 | H98: 0.81 | I98: 0
A99: 580 | B99: 0 | C99: EA | D99: SHIRT – FIRE, X-LARGE | E99: =_xlfn.XLOOKUP(A99,'Price List'!A:A,'Price List'!B:B) -> 95.54 | F99: 0 | H99: 1 | I99: 0
A100: 570 | B100: 0 | C100: EA | D100: SHIRT – FIRE, XX-LARGE | E100: =_xlfn.XLOOKUP(A100,'Price List'!A:A,'Price List'!B:B) -> 95.54 | F100: 0 | H100: 1.13 | I100: 0
A101: 2078 | B101: 0 | C101: EA | D101: SHIRT – LARGE, LONG | E101: =_xlfn.XLOOKUP(A101,'Price List'!A:A,'Price List'!B:B) -> 95.54 | F101: 0 | H101: 0.94 | I101: 0
A102: 511 | B102: 0 | C102: EA | D102: SHIRT – SMALL, LONG | E102: =_xlfn.XLOOKUP(A102,'Price List'!A:A,'Price List'!B:B) -> 95.54 | F102: 0 | H102: 0.88 | I102: 0
A103: 2079 | B103: 0 | C103: EA | D103: SHIRT - X-LARGE, LONG | E103: =_xlfn.XLOOKUP(A103,'Price List'!A:A,'Price List'!B:B) -> 95.54 | F103: 0 | H103: 1.06 | I103: 0
A104: 522 | B104: 0 | C104: EA | D104: SHIRT - X-SMALL | E104: =_xlfn.XLOOKUP(A104,'Price List'!A:A,'Price List'!B:B) -> 95.54 | F104: 0 | H104: 0.81 | I104: 0
A105: 512 | B105: 0 | C105: EA | D105: SHIRT – XXL, LONG | E105: =_xlfn.XLOOKUP(A105,'Price List'!A:A,'Price List'!B:B) -> 95.54 | F105: 0 | H105: 1.13 | I105: 0
A106: 2910 | B106: 0 | C106: EA | D106: SHIRT - XXXL | E106: =_xlfn.XLOOKUP(A106,'Price List'!A:A,'Price List'!B:B) -> 95.54 | F106: 0 | H106: 1.25 | I106: 0
A107: 2911 | B107: 0 | C107: EA | D107: SHIRT – XXXL, LONG | E107: =_xlfn.XLOOKUP(A107,'Price List'!A:A,'Price List'!B:B) -> 95.54 | F107: 0 | H107: 1.25 | I107: 0
A108: 171 | B108: 0 | C108: EA | D108: SHOVEL W/SHEATH | E108: =_xlfn.XLOOKUP(A108,'Price List'!A:A,'Price List'!B:B) -> 91.53 | F108: 0 | H108: 4.88 | I108: 0
A109: 1274 | B109: 0 | C109: EA | D109: SHROUD – FACE & NECK FF | E109: =_xlfn.XLOOKUP(A109,'Price List'!A:A,'Price List'!B:B) -> 33.91 | F109: =E109*B109 -> 0 | H109: 0.13 | I109: =B109*H109 -> 0
A110: 1868 | B110: 0 | C110: EA | D110: SWATTER, FIRE | E110: =_xlfn.XLOOKUP(A110,'Price List'!A:A,'Price List'!B:B) -> 59.17 | F110: 0 | H110: 5.3 | I110: 0
A111: 731 | B111: 0 | C111: EA | D111: TEE - HOSELINE, 1 1/2" NH-F X 1 1/2" NH-M X 1" NPSH-M W/CAP | E111: =_xlfn.XLOOKUP(A111,'Price List'!A:A,'Price List'!B:B) -> 46.7 | F111: 0 | H111: 0.38 | I111: 0
A112: 230 | B112: 0 | C112: EA | D112: TEE - HOSELINE, W/VALVE, 1 1/2" NH-F X 1 1/2" NH-M X 1" NPSH-M | E112: =_xlfn.XLOOKUP(A112,'Price List'!A:A,'Price List'!B:B) -> 46.89 | F112: 0 | H112: 0.94 | I112: 0
A113: 1180 | B113: 0 | C113: EA | D113: TOOL - COMBINATION SHOVEL AND GRUB HOE | E113: =_xlfn.XLOOKUP(A113,'Price List'!A:A,'Price List'!B:B) -> 89.45 | F113: 0 | H113: 4.5 | I113: 0
A114: 241 | B114: 0 | C114: EA | D114: TORCH – DRIP, 1.25 GL | E114: =_xlfn.XLOOKUP(A114,'Price List'!A:A,'Price List'!B:B) -> 190.26 | F114: 0 | H114: 5.13 | I114: 0
A115: 228 | B115: 0 | C115: EA | D115: VALVE - AUTOMATIC CHECK AND BLEEDER 1 1/2" NH-F | E115: =_xlfn.XLOOKUP(A115,'Price List'!A:A,'Price List'!B:B) -> 132.81 | F115: 0 | H115: 2.56 | I115: 0
A116: 212 | B116: 0 | C116: EA | D116: VALVE - FOOT, 1 1/2" NH-F W/STRAINER | E116: =_xlfn.XLOOKUP(A116,'Price List'!A:A,'Price List'!B:B) -> 90.5 | F116: 0 | H116: 1.88 | I116: 0
A117: 231 | B117: 0 | C117: EA | D117: VALVE - WYE, GATED, 1 1/2'' NH-F X 1 1/2'' NH-M X 1 1/2'' NH-M | E117: =_xlfn.XLOOKUP(A117,'Price List'!A:A,'Price List'!B:B) -> 125.1 | F117: 0 | H117: 3.75 | I117: 0
A118: 259 | B118: 0 | C118: EA | D118: VALVE - WYE, GATED, 1" NPSH-F X 1" NPSH-M X 1" NPSH-M | E118: =_xlfn.XLOOKUP(A118,'Price List'!A:A,'Price List'!B:B) -> 118.33 | F118: 0 | H118: 2.44 | I118: 0
A119: 229 | B119: 0 | C119: EA | D119: VALVE PRESSURE RELIEF 1.5 NH-F | E119: =_xlfn.XLOOKUP(A119,'Price List'!A:A,'Price List'!B:B) -> 99.76 | F119: 0 | H119: 1.38 | I119: 0
A120: 235 | B120: 0 | C120: EA | D120: WRENCH - SPANNER, 11", 1 1/2" TO 2 1/2" HOSE SIZE | E120: =_xlfn.XLOOKUP(A120,'Price List'!A:A,'Price List'!B:B) -> 10.07 | F120: 0 | H120: 0.63 | I120: 0
A121: 234 | B121: 0 | C121: EA | D121: WRENCH - SPANNER, 5", 1" TO 1 1/2" HOSE SIZE | E121: =_xlfn.XLOOKUP(A121,'Price List'!A:A,'Price List'!B:B) -> 6.46 | F121: 0 | H121: 0.38 | I121: 0
B122: 0 | E122: =_xlfn.XLOOKUP(A122,'Price List'!A:A,'Price List'!B:B) -> 0 | F122: 0 | H122: 0 | I122: 0
B123: 0 | E123: =_xlfn.XLOOKUP(A123,'Price List'!A:A,'Price List'!B:B) -> 0 | F123: 0 | H123: 0 | I123: 0
B124: 0 | E124: =_xlfn.XLOOKUP(A124,'Price List'!A:A,'Price List'!B:B) -> 0 | F124: 0 | H124: 0 | I124: 0
B125: 0 | E125: =_xlfn.XLOOKUP(A125,'Price List'!A:A,'Price List'!B:B) -> 0 | F125: 0 | H125: 0 | I125: 0
B126: 0 | E126: =_xlfn.XLOOKUP(A126,'Price List'!A:A,'Price List'!B:B) -> 0 | F126: 0 | H126: 0 | I126: 0
B127: 1 | E127: Product Cost | F127: =SUM(F14:F126) -> 0 | H127: Total Weight | I127: =SUM(I14:I126) -> 0
B128: 1 | E128: Estimated Shipping Costs (minimum shipping charge $10.00) | F128: =IF(I128=TRUE,10,H128) -> 10 | H128: =SUM(I127*0.8) -> 0 | I128: =IF(H128<10,TRUE,FALSE) -> TRUE
B129: 1 | E129: Total | F129: =SUM(F127:F128) -> 10

Sheet Price List
A1: 2 | B1: 4.32 | C1: =TRIM(A1) -> 2
A2: 3 | B2: 4.95
A3: 4 | B3: 5.01
A4: 6 | B4: 16.05
A5: 7 | B5: 16.05
A6: 9 | B6: 29.92
A7: 10 | B7: 13.52
A8: 10 | B8: 13.52
A9: 11 | B9: 66.3
A10: 14 | B10: 10.41
A11: 16 | B11: 39.02
A12: 18 | B12: 249.51
A13: 21 | B13: 32
A14: 22 | B14: 62.66
A15: 24 | B15: 151.16
A16: 30 | B16: 9.46
A17: 30 | B17: 9.46
A18: 33 | B18: 17.58
A19: 35 | B19: 8.37
A20: 37 | B20: 2.11
A21: 38 | B21: 10.48
A22: 45 | B22: 143.32
A23: 46 | B23: 53.94
A24: 47 | B24: 43.49
A25: 48 | B25: 211.88
A26: 49 | B26: 14.05
A27: 52 | B27: 5.01
A28: 53 | B28: 97.21
A29: 59 | B29: 10.17
A30: 60 | B30: 3.26
A31: 61 | B31: 6.21
A32: 63 | B32: 2.46
A33: 67 | B33: 31.34
A34: 70 | B34: 689.39
A35: 71 | B35: 7.28
A36: 77 | B36: 204.13
A37: 78 | B37: 143.32
A38: 82 | B38: 85.38
A39: 83 | B39: 63.33
A40: 84 | B40: 689.68
A41: 86 | B41: 6.99
A42: 89 | B42: 191.48
A43: 90 | B43: 859.06
A44: 105 | B44: 143.17
A45: 113 | B45: 57.72
A46: 114 | B46: 38.91
A47: 115 | B47: 213.7
A48: 126 | B48: 7.34
A49: 128 | B49: 121.62
A50: 131 | B50: 0.92
A51: 135 | B51: 80.78
A52: 135 | B52: 80.78
A53: 136 | B53: 21.96
A54: 136 | B54: 21.96
A55: 137 | B55: 8.33
A56: 138 | B56: 8.64
A57: 141 | B57: 10.87
A58: 141 | B58: 10.87
A59: 142 | B59: 66.34
A60: 143 | B60: 67.67
A61: 144 | B61: 80.97
A62: 145 | B62: 106.77
A63: 146 | B63: 72.68
A64: 148 | B64: 5354.46
A65: 148 | B65: 5354.46
A66: 148 | B66: 5354.46
A67: 148 | B67: 5354.46
A68: 148 | B68: 5354.46
A69: 149 | B69: 267.67
A70: 150 | B70: 143.32
A71: 151 | B71: 70.67
A72: 159 | B72: 1085.51
A73: 159 | B73: 1085.51
A74: 171 | B74: 91.53
A75: 177 | B75: 6.39
A76: 178 | B76: 1.47
A77: 184 | B77: 12.03
A78: 185 | B78: 6.5
A79: 186 | B79: 12.89
A80: 189 | B80: 0.71
A81: 196 | B81: 11.91
A82: 197 | B82: 4.32
A83: 206 | B83: 0.25
A84: 208 | B84: 55.98
A85: 210 | B85: 12.31
A86: 212 | B86: 90.5
A87: 213 | B87: 4.65
A88: 215 | B88: 5.82
A89: 216 | B89: 0.36
A90: 218 | B90: 175.88
A91: 218 | B91: 175.88
A92: 222 | B92: 5.34
A93: 223 | B93: 434.1
A94: 224 | B94: 0
A95: 224 | B95: 0
A96: 225 | B96: 35.02
A97: 228 | B97: 132.81
A98: 229 | B98: 99.76
A99: 230 | B99: 46.89
A100: 231 | B100: 125.1
A101: 234 | B101: 6.46
A102: 234 | B102: 6.46
A103: 235 | B103: 10.07
A104: 240 | B104: 35.83
A105: 241 | B105: 190.26
A106: 248 | B106: 11.34
A107: 250 | B107: 18.57
A108: 251 | B108: 2.37
A109: 251 | B109: 2.37
A110: 254 | B110: 0.37
A111: 256 | B111: 2.44
A112: 257 | B112: 4.19
A113: 258 | B113: 73.83
A114: 259 | B114: 118.33
A115: 260 | B115: 132.78
A116: 261 | B116: 7.89
A117: 262 | B117: 8.16
A118: 263 | B118: 5.86
A119: 264 | B119: 0.84
A120: 267 | B120: 3.62
A121: 268 | B121: 38.8
A122: 273 | B122: 7.51
A123: 278 | B123: 2.4
A124: 279 | B124: 2.21
A125: 281 | B125: 34.66
A126: 287 | B126: 0.01
A127: 288 | B127: 17.36
A128: 290 | B128: 8.18
A129: 291 | B129: 9.17
A130: 293 | B130: 7.24
A131: 294 | B131: 20.03
A132: 296 | B132: 68.49
A133: 299 | B133: 14.15
A134: 305 | B134: 52.58
A135: 307 | B135: 123.36
A136: 308 | B136: 85.7
A137: 315 | B137: 5.97
A138: 316 | B138: 16.6
A139: 317 | B139: 34.96
A140: 318 | B140: 22.02
A141: 318 | B141: 22.02
A142: 320 | B142: 699.36
A143: 321 | B143: 10.41
A144: 322 | B144: 23.79
A145: 324 | B145: 17.68
A146: 325 | B146: 15.38
A147: 328 | B147: 0.13
A148: 329 | B148: 14.07
A149: 332 | B149: 13.59
A150: 332 | B150: 13.59
A151: 333 | B151: 42.32
A152: 336 | B152: 1.94
A153: 340 | B153: 1783.92
A154: 342 | B154: 55.58
A155: 344 | B155: 3.14
A156: 345 | B156: 1.49
A157: 346 | B157: 6.53
A158: 347 | B158: 27.5
A159: 348 | B159: 8.8
A160: 350 | B160: 108.47
A161: 351 | B161: 2.38
A162: 358 | B162: 2.72
A163: 364 | B163: 9.55
A164: 365 | B164: 0.79
A165: 366 | B165: 0.83
A166: 367 | B166: 1.07
A167: 371 | B167: 64.97
A168: 372 | B168: 0.14
A169: 373 | B169: 1.5
A170: 374 | B170: 2.53
A171: 375 | B171: 2.39
A172: 376 | B172: 1.27
A173: 377 | B173: 2.11
A174: 378 | B174: 1.49
A175: 379 | B175: 0.73
A176: 381 | B176: 0.06
A177: 382 | B177: 16.56
A178: 383 | B178: 35.12
A179: 384 | B179: 40.09
A180: 385 | B180: 8.21
A181: 386 | B181: 1.41
A182: 386 | B182: 1.41
A183: 390 | B183: 1224.71
A184: 394 | B184: 0.07
A185: 401 | B185: 0.03
A186: 410 | B186: 79.41
A187: 415 | B187: 0.72
A188: 416 | B188: 16.53
A189: 417 | B189: 27.04
A190: 418 | B190: 11.85
A191: 420 | B191: 7.41
A192: 422 | B192: 21.86
A193: 424 | B193: 14.98
A194: 426 | B194: 372.41
A195: 428 | B195: 7.13
A196: 429 | B196: 9.65
A197: 435 | B197: 393.15
A198: 437 | B198: 233.33
A199: 437 | B199: 233.33
A200: 438 | B200: 42.97
... 1036 more rows
